bitfinex-derivatives/quotes_BTCF0:USTF0_20241008
["timestamp","ask_amount","ask_price","bid_price","bid_amount"]
[1728412660796,0.004,62246.0,62245.0,0.270371]
[1728412661001,0.0350476,62246.0,62245.0,0.270371]
[1728412661202,0.12374319,62246.0,62245.0,0.270371]
[1728412661399,0.17908578,62246.0,62245.0,0.752331]
[1728412661610,0.12274319,62246.0,62245.0,0.752331]
[1728412661906,0.12374319,62246.0,62245.0,0.270371]
[1728412662110,0.12374319,62246.0,62245.0,0.080371]
[1728412662307,0.07440782,62246.0,62245.0,0.080371]
[1728412662509,0.08438297,62246.0,62245.0,0.080371]
[1728412662812,0.12374319,62246.0,62245.0,0.080371]
[1728412662998,0.67454319,62246.0,62236.0,0.36164]
[1728412663204,0.67454319,62246.0,62237.0,0.08038]
[1728412663205,0.08038,62239.0,62237.0,0.08038]
[1728412663396,0.19,62240.0,62235.0,0.080384]
[1728412663397,0.17738886,62238.0,62235.0,0.080384]
[1728412663598,0.36507327,62236.0,62229.0,0.3608]
[1728412663804,0.19,62232.0,62229.0,0.3608]
[1728412664109,0.17738886,62231.0,62224.0,0.36321027]
[1728412664412,0.631197,62225.0,62224.0,0.00241027]
[1728412664619,0.80858586,62225.0,62224.0,0.00241027]
[1728412664805,0.44778586,62225.0,62224.0,0.00241027]
[1728412665499,0.4478394,62225.0,62223.0,0.06312501]
[1728412665703,0.080402,62222.0,62218.0,0.080405]
[1728412665902,0.080402,62222.0,62214.0,0.3608]
[1728412665903,0.3674424,62221.0,62219.0,0.080405]
[1728412666102,0.1774424,62220.0,62219.0,0.080405]
[1728412666309,0.3608,62222.0,62216.0,0.19]
[1728412666505,0.3608,62222.0,62221.0,0.270402]
[1728412666904,0.002,62222.0,62221.0,0.270402]
[1728412667312,0.002,62222.0,62221.0,0.080402]
[1728412667917,0.272401,62222.0,62221.0,0.080402]
[1728412668416,0.271401,62222.0,62221.0,0.080402]
[1728412668902,0.282401,62222.0,62221.0,0.081402]
[1728412669808,0.012,62222.0,62221.0,0.081402]
[1728412670814,0.01,62222.0,62221.0,0.632202]
[1728412671504,0.006,62222.0,62221.0,0.632202]
[1728412671703,0.01,62222.0,62221.0,0.632202]
[1728412673512,0.01,62222.0,62221.0,0.442202]
[1728412674610,0.04105947,62222.0,62221.0,0.442202]
[1728412675011,0.0410595,62222.0,62221.0,0.442202]
[1728412679514,0.16083566,62222.0,62221.0,0.442202]
[1728412679719,0.21019179,62222.0,62221.0,0.442202]
[1728412679922,0.16083989,62222.0,62221.0,0.442202]
[1728412680225,0.2397968,62222.0,62216.0,0.3608]
[1728412680517,0.080411,62215.0,62214.0,0.080409]
[1728412680719,0.15084989,62215.0,62214.0,0.080409]
[1728412681310,0.080411,62215.0,62214.0,0.080409]
[1728412681515,0.080411,62215.0,62214.0,0.2019386]
[1728412682228,0.0583,62217.0,62215.0,0.08041]
[1728412682417,0.0583,62217.0,62216.0,0.2019386]
[1728412682927,0.138708,62217.0,62216.0,0.2019386]
[1728412684219,0.08238206,62217.0,62216.0,0.2019386]
[1728412684422,0.08238206,62217.0,62216.0,0.28596688]
[1728412684727,0.08438206,62217.0,62216.0,0.28596688]
[1728412685027,0.080411,62214.0,62210.0,0.16044428]
[1728412685324,0.3608,62212.0,62211.0,0.06402934]
[1728412685523,0.3608,62212.0,62210.0,0.14444534]
[1728412685524,0.080415,62211.0,62210.0,0.14444534]
[1728412685827,0.080415,62211.0,62210.0,0.080416]
[1728412687424,0.080415,62211.0,62210.0,0.12841167]
[1728412687631,0.080415,62211.0,62210.0,0.13041167]
[1728412688224,0.080415,62211.0,62210.0,0.13041165]
[1728412688422,0.080415,62211.0,62210.0,0.084416]
[1728412688931,0.080415,62211.0,62210.0,0.13241733]
[1728412689146,0.080415,62211.0,62210.0,0.05200133]
[1728412689322,0.080415,62211.0,62206.0,0.08002828]
[1728412689323,1.14224,62211.0,62206.0,0.08002828]
[1728412689524,0.441221,62207.0,62204.0,0.00241128]
[1728412689738,0.080423,62205.0,62204.0,0.08283528]
[1728412690038,0.080423,62205.0,62204.0,0.19830483]
[1728412690233,0.080423,62205.0,62197.0,0.09993586]
[1728412690234,0.080427,62202.0,62201.0,0.08001562]
[1728412690534,0.080427,62202.0,62197.0,0.08001962]
[1728412690535,0.080428,62201.0,62197.0,0.08001962]
[1728412690837,0.080433,62197.0,62195.0,0.08001962]
[1728412691025,0.3608,62199.0,62188.0,0.1540479]
[1728412691026,0.080436,62195.0,62194.0,0.16045562]
[1728412691228,0.19,62195.0,62194.0,0.19673714]
[1728412691435,0.3608,62199.0,62194.0,0.19673714]
[1728412691436,0.441232,62199.0,62198.0,0.080432]
[1728412693633,0.441232,62199.0,62198.0,0.004]
[1728412693835,0.441232,62199.0,62198.0,0.008]
[1728412694227,0.631232,62199.0,62198.0,0.008]
[1728412694828,0.080436,62195.0,62194.0,0.08003207]
[1728412695034,0.080437,62194.0,62193.0,0.08003207]
[1728412695232,0.080439,62193.0,62192.0,0.08003207]
[1728412695543,0.080439,62193.0,62189.0,0.080443]
[1728412695544,0.08044,62192.0,62191.0,0.08003207]
[1728412696431,0.080442,62190.0,62189.0,0.080443]
[1728412696634,0.11152095,62190.0,62189.0,0.080443]
[1728412698035,0.11152095,62190.0,62189.0,0.084443]
[1728412698439,0.11152095,62190.0,62189.0,0.085443]
[1728412698941,0.15092172,62190.0,62189.0,0.085443]
[1728412699438,0.11152095,62190.0,62189.0,0.085443]
[1728412699640,0.11152159,62190.0,62189.0,0.084443]
[1728412699834,0.07048036,62190.0,62189.0,0.084443]
[1728412700444,0.03107959,62190.0,62189.0,0.086443]
[1728412700943,0.06025554,62190.0,62189.0,0.086443]
[1728412703835,0.03107959,62190.0,62189.0,0.086443]
[1728412704635,0.3608,62194.0,62193.0,0.080439]
[1728412704841,0.4808,62194.0,62193.0,0.080439]
[1728412705752,0.561237,62194.0,62189.0,0.006]
[1728412705940,0.270442,62190.0,62189.0,0.003]
[1728412707044,0.270442,62190.0,62189.0,0.086444]
[1728412707548,0.270442,62190.0,62189.0,0.003]
[1728412708645,0.270442,62190.0,62189.0,0.083444]
[1728412708848,0.270442,62190.0,62189.0,0.086444]
[1728412711457,0.270442,62190.0,62189.0,0.006]
[1728412711648,0.39030847,62190.0,62189.0,0.006]
[1728412712351,0.39030847,62190.0,62189.0,0.0033964]
[1728412714256,0.55046589,62190.0,62189.0,0.0033964]
[1728412714551,0.39030847,62190.0,62189.0,0.0033964]
[1728412715349,0.53454221,62190.0,62189.0,0.0033964]
[1728412715750,0.22986647,62190.0,62170.0,0.00241255]
[1728412715950,0.080464,62175.0,62174.0,0.080463]
[1728412716151,0.34094431,62175.0,62174.0,0.080463]
[1728412716560,0.26048031,62175.0,62174.0,0.080463]
[1728412716862,0.26049408,62175.0,62174.0,0.080463]
[1728412717161,0.34195608,62175.0,62174.0,0.086463]
[1728412717959,0.34195608,62175.0,62174.0,0.006]
[1728412718162,0.3913522,62175.0,62174.0,0.006]
[1728412718658,0.5013522,62175.0,62174.0,0.006]
[1728412719453,0.5013522,62175.0,62174.0,0.001]
[1728412719655,0.34219638,62175.0,62174.0,0.11866305]
[1728412719860,0.34219638,62175.0,62174.0,0.11766305]
[1728412720664,0.192462,62175.0,62174.0,0.19793706]
[1728412720864,0.382462,62175.0,62174.0,0.19793706]
[1728412721258,0.382462,62175.0,62174.0,0.08027401]
[1728412721560,0.080464,62173.0,62172.0,0.08027401]
[1728412721755,0.270464,62173.0,62172.0,0.19762808]
[1728412722062,0.002,62175.0,62172.0,0.30735407]
[1728412722256,0.082463,62175.0,62174.0,0.08024863]
[1728412722450,0.080463,62174.0,62171.0,0.080466]
[1728412722651,0.3608,62172.0,62171.0,0.080466]
[1728412722857,0.3608,62172.0,62171.0,0.1978219]
[1728412723469,0.3608,62172.0,62171.0,0.1988219]
[1728412725258,0.3608,62172.0,62171.0,0.2008219]
[1728412725757,0.3608,62172.0,62171.0,0.2028219]
[1728412726670,0.3608,62172.0,62171.0,0.085466]
[1728412727767,0.441266,62172.0,62171.0,0.085466]
[1728412727966,0.441266,62172.0,62171.0,0.005]
[1728412728358,0.441266,62172.0,62163.0,0.0583]
[1728412728359,0.48256,62171.0,62142.0,0.3608]
[1728412728563,0.3608,62153.0,62152.0,0.080491]
[1728412728872,0.3608,62153.0,62148.0,0.138596]
[1728412728873,0.19,62150.0,62148.0,0.138596]
[1728412729070,0.19,62150.0,62149.0,0.080496]
[1728412729565,0.080496,62149.0,62148.0,0.0581]
[1728412729767,0.080496,62149.0,62147.0,0.003]
[1728412729768,0.080497,62148.0,62147.0,0.003]
[1728412729967,0.441297,62148.0,62147.0,0.003]
[1728412730269,0.080501,62145.0,62141.0,0.080505]
[1728412730460,0.3608,62148.0,62141.0,0.080505]
[1728412730461,0.19,62142.0,62141.0,0.080505]
[1728412732672,0.19,62142.0,62138.0,0.0581]
[1728412732868,0.191,62142.0,62141.0,0.008]
[1728412733059,0.272505,62142.0,62141.0,0.008]
[1728412733261,0.192,62142.0,62141.0,0.008]
[1728412733473,0.192,62142.0,62141.0,0.088506]
[1728412733771,0.192,62142.0,62141.0,0.080506]
[1728412733967,0.191,62142.0,62141.0,0.080506]
[1728412734273,0.192,62142.0,62141.0,0.080506]
[1728412734572,0.1356036,62142.0,62141.0,0.19840263]
[1728412734762,0.002,62142.0,62141.0,0.19840263]
[1728412735074,0.192,62142.0,62141.0,0.19840263]
[1728412735366,0.192,62142.0,62141.0,0.20640263]
[1728412735672,0.192,62142.0,62141.0,0.12589663]
[1728412735973,0.272505,62142.0,62141.0,0.008]
[1728412736273,0.272505,62142.0,62141.0,0.08794001]
[1728412736469,0.272505,62142.0,62141.0,0.008]
[1728412736774,0.22416224,62142.0,62141.0,0.20552226]
[1728412736973,0.22416224,62142.0,62141.0,0.20452226]
[1728412737371,0.22516224,62142.0,62141.0,0.007]
[1728412738261,0.082505,62142.0,62141.0,0.007]
[1728412738463,0.372505,62142.0,62141.0,0.007]
[1728412744165,0.372505,62142.0,62141.0,0.0709369]
[1728412744371,0.430605,62142.0,62141.0,0.0709369]
[1728412744781,0.430605,62142.0,62141.0,0.007]
[1728412745077,0.430605,62142.0,62141.0,0.087506]
[1728412745078,0.292,62142.0,62141.0,0.087506]
[1728412745275,0.002,62142.0,62141.0,0.087506]
[1728412745481,0.002,62142.0,62141.0,0.16744601]
[1728412745482,0.192,62142.0,62141.0,0.16744601]
[1728412745673,0.192,62142.0,62141.0,0.28465617]
[1728412745877,0.272505,62142.0,62141.0,0.08694001]
[1728412746182,0.272505,62142.0,62141.0,0.007]
[1728412746474,0.372505,62142.0,62141.0,0.07098752]
[1728412746679,0.433905,62142.0,62141.0,0.007]
[1728412746881,0.433905,62142.0,62141.0,0.07098754]
[1728412747271,0.433905,62142.0,62141.0,0.007]
[1728412747973,0.433905,62142.0,62141.0,0.07098495]
[1728412749271,0.433905,62142.0,62141.0,0.07101078]
[1728412749572,0.433905,62142.0,62141.0,0.007]
[1728412755175,0.432905,62142.0,62141.0,0.005]
[1728412755373,0.431905,62142.0,62141.0,0.005]
[1728412755685,0.432905,62142.0,62141.0,0.006]
[1728412759069,0.976365,62142.0,62141.0,0.006]
[1728412759273,1.576365,62142.0,62141.0,0.006]
[1728412759470,1.575365,62142.0,62141.0,0.005]
[1728412759686,1.576365,62142.0,62141.0,0.006]
[1728412760181,1.576365,62142.0,62141.0,0.001]
[1728412760369,1.576365,62142.0,62141.0,0.005]
[1728412764483,1.454265,62142.0,62141.0,0.005]
[1728412764678,0.854265,62142.0,62141.0,0.005]
[1728412765174,0.371505,62142.0,62141.0,0.005]
[1728412765679,0.854265,62142.0,62141.0,0.005]
[1728412766182,0.371505,62142.0,62141.0,0.005]
[1728412767079,0.291,62142.0,62141.0,0.005]
[1728412767281,0.291,62142.0,62141.0,0.20355055]
[1728412767282,0.101,62142.0,62141.0,0.20355055]
[1728412767473,0.06071484,62142.0,62141.0,0.20355055]
[1728412767778,0.25071484,62142.0,62141.0,0.20355055]
[1728412767982,0.001,62142.0,62141.0,0.29978641]
[1728412768169,0.001,62142.0,62141.0,0.20355055]
[1728412768375,0.3608,62143.0,62142.0,0.080505]
[1728412768677,0.3608,62143.0,62142.0,0.19854955]
[1728412768884,0.3608,62149.0,62148.0,0.080496]
[1728412769079,0.4708,62149.0,62148.0,0.19854055]
[1728412769277,0.4708,62149.0,62148.0,0.11804455]
[1728412769479,0.11,62149.0,62148.0,0.11804455]
[1728412770072,0.11,62149.0,62148.0,0.19854155]
[1728412770478,0.113,62149.0,62148.0,0.19854155]
[1728412770775,0.113,62149.0,62148.0,0.11804455]
[1728412770977,0.003,62149.0,62148.0,0.19854155]
[1728412771278,0.006,62149.0,62148.0,0.080497]
[1728412771485,0.04542375,62149.0,62148.0,0.080497]
[1728412771785,0.006,62149.0,62148.0,0.080497]
[1728412772179,0.16025972,62153.0,62152.0,0.080492]
[1728412772378,0.03109614,62153.0,62150.0,0.3608]
[1728412772677,0.17532811,62152.0,62151.0,0.080493]
[1728412773087,0.03109614,62152.0,62151.0,1.163173]
[1728412773688,0.03609614,62152.0,62151.0,1.163173]
[1728412774782,0.03609614,62152.0,62151.0,0.563173]
[1728412775190,0.04109614,62152.0,62151.0,0.563173]
[1728412776483,0.12158814,62152.0,62151.0,0.080493]
[1728412776683,0.12158814,62152.0,62150.0,0.3608]
[1728412776684,0.080493,62151.0,62150.0,0.3608]
[1728412776881,0.080493,62151.0,62147.0,0.0581]
[1728412776882,0.30158914,62151.0,62147.0,0.0581]
[1728412777083,0.270493,62151.0,62150.0,0.080494]
[1728412777290,0.3510054,62151.0,62150.0,0.080494]
[1728412778084,0.27051283,62151.0,62144.0,0.3608]
[1728412778285,0.19,62145.0,62144.0,0.3608]
[1728412778493,0.19,62145.0,62144.0,0.441301]
[1728412778494,0.30159859,62145.0,62144.0,0.441301]
[1728412779183,0.30159859,62145.0,62144.0,0.080501]
[1728412779386,0.270501,62145.0,62144.0,0.082501]
[1728412779586,0.270501,62145.0,62144.0,0.083501]
[1728412779891,0.080495,62150.0,62144.0,0.003]
[1728412780083,0.080498,62148.0,62147.0,0.080497]
[1728412780685,0.270498,62148.0,62147.0,0.080497]
[1728412781816,0.272498,62148.0,62147.0,0.080497]
[1728412783008,0.30335297,62148.0,62147.0,0.080497]
[1728412783203,0.22285497,62148.0,62147.0,0.080497]
[1728412783402,0.30335197,62148.0,62147.0,0.080497]
[1728412784305,0.22285497,62148.0,62147.0,0.080497]
[1728412784705,0.30335197,62148.0,62147.0,0.080497]
[1728412785021,0.03285497,62148.0,62147.0,0.080497]
[1728412786526,0.10337723,62148.0,62147.0,0.080497]
[1728412786711,0.18387423,62148.0,62147.0,0.080497]
[1728412787608,0.080502,62144.0,62143.0,0.080502]
[1728412787805,0.30159996,62144.0,62143.0,0.080502]
[1728412788109,0.34102725,62144.0,62143.0,0.080502]
[1728412788412,0.11159996,62144.0,62143.0,0.080502]
[1728412788721,0.11159996,62144.0,62143.0,0.083502]
[1728412788722,0.03109796,62144.0,62143.0,0.083502]
[1728412788907,0.0310989,62145.0,62143.0,0.003]
[1728412789114,0.0310989,62144.0,62143.0,0.083503]
[1728412789819,0.0310989,62144.0,62143.0,0.085503]
[1728412791419,0.1116009,62144.0,62143.0,0.085503]
[1728412791718,0.0310989,62144.0,62143.0,0.085503]
[1728412792715,0.1116009,62144.0,62143.0,0.085503]
[1728412792912,0.15102573,62144.0,62143.0,0.085503]
[1728412793623,0.07052373,62144.0,62143.0,0.085503]
[1728412794419,0.070523,62144.0,62143.0,0.085503]
[1728412794721,0.0805,62146.0,62145.0,0.080501]
[1728412794920,0.1105,62146.0,62145.0,0.080501]
[1728412797218,0.1105,62146.0,62145.0,0.081501]
[1728412797418,0.03,62146.0,62145.0,0.38980586]
[1728412797615,0.080492,62152.0,62151.0,0.080493]
[1728412797813,0.200492,62152.0,62151.0,0.080493]
[1728412798316,0.1175,62153.0,62152.0,0.080492]
[1728412798520,0.08290225,62155.0,62149.0,0.3608]
[1728412798521,0.00241425,62155.0,62154.0,0.080489]
[1728412800915,0.00241425,62155.0,62154.0,0.441289]
[1728412801218,0.080468,62171.0,62164.0,0.080476]
[1728412801418,0.080468,62171.0,62159.0,0.080483]
[1728412801419,0.19,62166.0,62165.0,0.080475]
[1728412801618,0.30990846,62166.0,62155.0,0.00084]
[1728412801824,0.30990846,62166.0,62154.0,0.3608]
[1728412801825,0.08048,62161.0,62160.0,0.080481]
[1728412802020,0.11991866,62161.0,62160.0,0.79]
[1728412802222,0.14437909,62163.0,62162.0,0.080479]
[1728412802417,0.007,62165.0,62164.0,0.080476]
[1728412802925,0.007,62165.0,62164.0,1.163076]
[1728412803226,0.007,62165.0,62164.0,0.563076]
[1728412803618,0.007,62165.0,62164.0,0.084476]
[1728412804521,0.087475,62165.0,62164.0,0.084476]
[1728412804721,0.087475,62165.0,62162.0,0.3608]
[1728412805021,0.080477,62163.0,62162.0,0.441278]
[1728412805422,0.080477,62163.0,62162.0,0.3608]
[1728412805627,0.080483,62159.0,62158.0,0.080483]
[1728412805823,0.080477,62163.0,62161.0,0.08048]
[1728412805824,0.14401206,62162.0,62161.0,0.08048]
[1728412806020,0.28698806,62164.0,62162.0,0.080479]
[1728412806229,0.142976,62164.0,62163.0,0.270477]
[1728412806422,0.0625,62164.0,62163.0,0.270477]
[1728412807822,0.0645,62164.0,62163.0,0.270477]
[1728412808137,0.002,62164.0,62163.0,1.353077]
[1728412808633,0.003,62164.0,62163.0,1.38238699]
[1728412809630,0.001,62164.0,62163.0,1.36718699]
[1728412810023,0.139863,62174.0,62163.0,1.28670999]
[1728412810220,0.139863,62174.0,62173.0,0.080464]
[1728412811523,0.145863,62174.0,62173.0,0.080464]
[1728412812335,0.151863,62174.0,62173.0,0.081464]
[1728412812636,0.151863,62174.0,62173.0,0.001]
[1728412813520,0.151863,62174.0,62173.0,0.081464]
[1728412813927,0.151863,62174.0,62173.0,0.001]
[1728412815031,0.261863,62174.0,62173.0,0.001]
[1728412815227,0.261863,62174.0,62167.0,0.3608]
[1728412815431,0.261863,62174.0,62168.0,0.08047]
[1728412815432,0.080464,62173.0,62168.0,0.08047]
[1728412815627,0.080464,62173.0,62167.0,0.3608]
[1728412815628,0.080466,62172.0,62170.0,0.080468]
[1728412815823,0.080467,62171.0,62170.0,0.080468]
[1728412816634,0.1509647,62171.0,62170.0,0.080468]
[1728412816827,0.20036457,62171.0,62170.0,0.080468]
[1728412817137,0.20621622,62171.0,62170.0,0.05955708]
[1728412817330,0.18061992,62171.0,62170.0,0.05955708]
[1728412817637,0.2902855,62171.0,62170.0,0.05955708]
[1728412817833,0.37609517,62171.0,62170.0,0.05955708]
[1728412818136,0.37609517,62171.0,62170.0,0.06155708]
[1728412818137,0.25808692,62171.0,62170.0,0.06155708]
[1728412818727,0.25808692,62171.0,62170.0,0.06455708]
[1728412820039,0.20036457,62171.0,62170.0,0.06655708]
[1728412820432,0.37610053,62171.0,62170.0,0.06655708]
[1728412820838,0.20036457,62171.0,62170.0,0.06655708]
[1728412821430,0.37610053,62171.0,62170.0,0.06655708]
[1728412821837,0.37610053,62171.0,62167.0,0.3608]
[1728412821838,0.62382248,62171.0,62167.0,0.3608]
[1728412822055,0.62382248,62171.0,62155.0,0.3608]
[1728412822056,0.23932457,62170.0,62155.0,0.3608]
[1728412822342,0.23932457,62170.0,62168.0,0.080471]
[1728412822343,0.17762457,62169.0,62168.0,0.080471]
[1728412822730,0.11989757,62169.0,62168.0,0.080471]
[1728412823132,0.17762457,62169.0,62168.0,0.080471]
[1728412823350,0.11989757,62169.0,62168.0,0.080471]
[1728412823642,0.20693187,62169.0,62168.0,0.080471]
[1728412823830,0.11989757,62169.0,62168.0,1.163031]
[1728412824036,0.11989757,62169.0,62168.0,1.223431]
[1728412824636,0.17584424,62173.0,62172.0,0.080466]
[1728412824836,0.17584424,62173.0,62172.0,0.631266]
[1728412825637,0.17584424,62173.0,62172.0,0.441266]
[1728412825937,0.25630824,62173.0,62172.0,0.080466]
[1728412826442,0.25630824,62173.0,62172.0,0.441266]
[1728412826647,0.25630824,62173.0,62172.0,0.14465275]
[1728412827340,0.26230824,62173.0,62172.0,0.080466]
[1728412827736,0.26930824,62173.0,62172.0,0.081466]
[1728412830732,0.32820824,62173.0,62172.0,0.081466]
[1728412830938,0.79900824,62173.0,62172.0,0.06527725]
[1728412831147,0.79900824,62173.0,62172.0,0.001]
[1728412831337,0.82869345,62173.0,62172.0,0.001]
[1728412832039,0.35789345,62173.0,62172.0,0.001]
[1728412832435,0.18884424,62173.0,62172.0,0.081466]
[1728412833048,0.013,62173.0,62172.0,0.081466]
[1728412835647,0.093464,62173.0,62172.0,0.081466]
[1728412836043,0.080461,62176.0,62172.0,0.081466]
[1728412836249,0.080464,62173.0,62172.0,0.081466]
[1728412837149,0.080464,62173.0,62172.0,0.080466]
[1728412838242,0.087464,62173.0,62172.0,0.081466]
[1728412838849,0.007,62173.0,62172.0,0.081466]
[1728412839053,0.087464,62173.0,62172.0,0.081466]
[1728412840037,0.12687399,62173.0,62172.0,0.081466]
[1728412840242,0.2073586,62173.0,62172.0,0.081466]
[1728412841347,0.12689234,62173.0,62172.0,0.081466]
[1728412842550,0.23689234,62173.0,62172.0,0.081466]
[1728412843446,0.07749552,62173.0,62172.0,0.442266]
[1728412843651,0.09580328,62173.0,62172.0,0.442266]
[1728412843845,0.23870216,62181.0,62179.0,0.080457]
[1728412843846,0.14796109,62181.0,62179.0,0.080457]
[1728412844047,0.07289585,62180.0,62179.0,0.631257]
[1728412845170,0.07389585,62180.0,62179.0,0.631257]
[1728412845453,0.0714828,62180.0,62179.0,0.631257]
[1728412846650,0.0714828,62180.0,62179.0,0.441257]
[1728412847447,0.0714828,62180.0,62179.0,0.631257]
[1728412847960,0.20132692,62180.0,62179.0,0.3608]
[1728412848145,0.41362873,62180.0,62179.0,0.3608]
[1728412848351,0.25334412,62180.0,62179.0,0.3608]
[1728412849560,0.41361912,62180.0,62179.0,0.3608]
[1728412849859,0.080464,62173.0,62172.0,0.36172]
[1728412850058,0.080464,62173.0,62172.0,0.3608]
[1728412850355,0.12985962,62173.0,62172.0,0.3608]
[1728412850559,0.240739,62173.0,62172.0,0.3608]
[1728412850759,0.29013462,62173.0,62172.0,0.3608]
[1728412850959,0.29513462,62173.0,62172.0,0.3608]
[1728412851256,0.14085962,62173.0,62172.0,0.3618]
[1728412851464,0.14085844,62173.0,62172.0,0.3618]
[1728412851962,0.18026621,62173.0,62172.0,0.3618]
[1728412853854,0.21135174,62173.0,62172.0,0.3618]
[1728412854463,0.40028378,62173.0,62172.0,0.3618]
[1728412856157,0.40028378,62173.0,62172.0,0.001]
[1728412856158,0.64119604,62173.0,62172.0,0.001]
[1728412856365,0.48092104,62173.0,62172.0,0.001]
[1728412856860,0.58092104,62173.0,62172.0,0.001]
[1728412857860,0.22012104,62173.0,62172.0,0.001]
[1728412865764,0.011,62173.0,62172.0,0.081466]
[1728412870070,0.011,62173.0,62172.0,0.139766]
[1728412870960,0.011,62173.0,62172.0,0.081466]
[1728412871270,0.091464,62173.0,62172.0,0.081466]
[1728412871469,0.091464,62173.0,62172.0,0.001]
[1728412872171,0.091464,62173.0,62172.0,0.081466]
[1728412874069,0.11975504,62173.0,62172.0,0.001]
[1728412874374,0.23975504,62173.0,62172.0,0.001]
[1728412876977,0.60055504,62173.0,62172.0,0.001]
[1728412878971,0.60055504,62173.0,62164.0,0.0037]
[1728412878972,1.60261104,62173.0,62164.0,0.0037]
[1728412879274,0.080485,62158.0,62150.0,0.09095587]
[1728412879476,0.5508,62165.0,62153.0,0.19]
[1728412879477,0.080486,62157.0,62153.0,0.19]
[1728412879675,0.080488,62156.0,62154.0,0.080488]
[1728412879980,0.080494,62150.0,62149.0,0.08290821]
[1728412880473,0.270494,62150.0,62149.0,0.00241321]
[1728412881066,0.271494,62150.0,62149.0,0.01041321]
[1728412881262,0.081494,62150.0,62149.0,0.01041321]
[1728412881665,0.11201457,62150.0,62149.0,0.00241321]
[1728412881873,0.11401457,62150.0,62149.0,0.00241321]
[1728412882071,0.004,62150.0,62149.0,0.00241321]
[1728412882273,0.004,62150.0,62149.0,0.27290921]
[1728412891978,0.08048,62162.0,62149.0,1.35562921]
[1728412892181,0.08048,62162.0,62161.0,0.19]
[1728412892379,0.08048,62162.0,62161.0,0.27048]
[1728412893181,0.08048,62162.0,62161.0,0.08048]
[1728412893484,0.080483,62159.0,62158.0,0.080483]
[1728412894990,0.27348,62162.0,62155.0,0.080487]
[1728412894991,0.080489,62156.0,62155.0,0.080487]
[1728412895181,0.080489,62156.0,62153.0,0.3608]
[1728412895182,0.19,62156.0,62153.0,0.3608]
[1728412895382,0.0591,62155.0,62153.0,0.3608]
[1728412895582,0.080489,62154.0,62153.0,0.44129]
[1728412896193,0.0591,62155.0,62154.0,0.080489]
[1728412896985,0.0641,62155.0,62154.0,0.080489]
[1728412898283,0.144588,62155.0,62153.0,0.3618]
[1728412898790,0.150588,62155.0,62154.0,0.001]
[1728412899594,0.17291874,62155.0,62153.0,0.3608]
[1728412899897,0.17815559,62155.0,62153.0,0.08019653]
[1728412900078,0.080489,62154.0,62153.0,0.08019653]
[1728412900280,0.12,62154.0,62152.0,0.08019653]
[1728412900484,0.19,62153.0,62147.0,0.09623278]
[1728412900683,0.080493,62151.0,62150.0,0.122062]
[1728412900981,0.190493,62151.0,62150.0,0.122062]
[1728412901388,0.11,62151.0,62150.0,0.202556]
[1728412901581,0.190493,62151.0,62150.0,0.202556]
[1728412901782,0.190493,62151.0,62150.0,0.20226596]
[1728412902191,0.112,62151.0,62150.0,0.20226596]
[1728412902990,0.114,62151.0,62150.0,0.20226596]
[1728412903594,0.195493,62151.0,62150.0,0.20226596]
[1728412903991,0.196493,62151.0,62150.0,0.20226596]
[1728412906495,0.196493,62151.0,62150.0,0.29849874]
[1728412906886,0.196493,62151.0,62150.0,0.080494]
[1728412907695,0.116,62151.0,62150.0,0.080494]
[1728412907993,0.196493,62151.0,62150.0,0.080494]
[1728412914990,0.14815984,62151.0,62150.0,0.34728001]
[1728412916686,0.14815984,62151.0,62150.0,0.34662858]
[1728412919301,0.14815984,62151.0,62150.0,0.26613458]
[1728412919994,0.14815984,62151.0,62150.0,0.34662858]
[1728412920891,0.14815984,62151.0,62150.0,0.34671336]
[1728412921085,0.14815984,62151.0,62150.0,0.26621936]
[1728412921790,0.50895984,62151.0,62150.0,0.26621936]
[1728412922497,0.62895984,62151.0,62150.0,0.26621936]
[1728412922899,0.50895984,62151.0,62150.0,0.26621936]
[1728412923092,0.62895984,62151.0,62150.0,0.26621936]
[1728412929406,1.71163984,62151.0,62150.0,0.26621936]
[1728412929810,1.71163984,62151.0,62150.0,0.07291936]
[1728412930007,1.74274196,62151.0,62144.0,0.080509]
[1728412930205,0.12,62145.0,62144.0,0.080509]
[1728412930400,0.310509,62145.0,62144.0,0.080509]
[1728412930604,0.080512,62143.0,62142.0,0.08051]
[1728412930802,0.12,62143.0,62142.0,0.080513]
[1728412932304,0.200511,62143.0,62142.0,0.080513]
[1728412932504,0.080517,62140.0,62139.0,0.080516]
[1728412932714,0.22,62140.0,62139.0,0.080516]
[1728412933604,0.221,62140.0,62139.0,0.088516]
[1728412934011,0.222,62140.0,62139.0,0.092516]
[1728412936612,0.302515,62140.0,62139.0,0.092516]
[1728412937603,0.663315,62140.0,62139.0,0.092516]
[1728412939016,0.5828,62140.0,62139.0,0.1891163]
[1728412939316,0.4628,62140.0,62139.0,0.1891163]
[1728412940110,0.4628,62140.0,62139.0,0.092516]
[1728412940319,0.543315,62140.0,62139.0,0.092516]
[1728412941209,0.543315,62140.0,62139.0,0.1891163]
[1728412941515,0.4628,62140.0,62139.0,0.1891163]
[1728412941912,0.4628,62140.0,62139.0,0.092516]
[1728412942131,0.40640018,62140.0,62139.0,0.092516]
[1728412944118,0.04560018,62140.0,62139.0,0.092516]
[1728412944819,0.0053146,62140.0,62139.0,0.21246636]
[1728412945122,0.0053146,62140.0,62139.0,0.212516]
[1728412945123,0.07585018,62140.0,62139.0,0.212516]
[1728412945313,0.07253558,62140.0,62139.0,0.212516]
[1728412945508,0.03310424,62140.0,62139.0,0.212516]
[1728412949023,0.03310424,62140.0,62139.0,0.092516]